bitfinex/quotes_SOLUSD_20250612
["timestamp","ask_amount","ask_price","bid_price","bid_amount"]
[1749707751966,4.69672734,159.42,159.41,5.44]
[1749707754872,8.85466082,159.43,159.41,5.44]
[1749707755893,10.44676082,159.44,159.41,5.44]
[1749707756053,13.55150168,159.43,159.41,5.44]
[1749707756253,8.85466082,159.43,159.41,5.44]
[1749707756748,26.0,159.45,159.41,5.44]
[1749707756965,8.85466082,159.43,159.41,5.44]
[1749707760589,34.85466082,159.45,159.41,5.44]
[1749707760759,8.85466082,159.46,159.42,8.85466082]
[1749707761078,4.69619332,159.45,159.42,8.85466082]
[1749707761267,8.85466082,159.46,159.42,8.85466082]
[1749707761470,4.69619127,159.45,159.42,8.85466082]
[1749707761673,8.85466082,159.46,159.42,8.85466082]
[1749707761984,26.0,159.46,159.43,34.35466082]
[1749707762288,8.85466082,159.47,159.43,34.35466082]
[1749707762488,4.69401862,159.46,159.43,34.35466082]
[1749707762782,5.86449188,159.52,159.45,8.85466082]
[1749707763087,13.54816901,159.51,159.47,8.85466082]
[1749707763265,8.85466082,159.51,159.47,34.35466082]
[1749707763464,8.85466082,159.51,159.47,25.5]
[1749707764779,8.85466082,159.5,159.47,25.5]
[1749707765188,8.85466082,159.49,159.47,25.5]
[1749707765387,13.83035928,159.49,159.47,25.5]
[1749707768591,13.83035928,159.48,159.47,25.5]
[1749707769691,16.1801117,159.48,159.41,24.08964886]
[1749707769863,13.83035928,159.46,159.44,25.5]
[1749707771071,26.0,159.48,159.44,25.5]
[1749707771588,13.83035928,159.47,159.44,25.5]
[1749707771884,13.83035928,159.47,159.42,13.83035928]
[1749707772083,13.83035928,159.47,159.43,25.5]
[1749707773192,13.83035928,159.47,159.43,39.33035928]
[1749707775393,13.83035928,159.48,159.43,39.33035928]
[1749707776191,42.18015693,159.49,159.45,13.83035928]
[1749707776394,13.83035928,159.49,159.46,25.5]
[1749707776966,13.83035928,159.5,159.46,25.5]
[1749707779490,13.83035928,159.49,159.46,25.5]
[1749707786301,13.83035928,159.48,159.46,25.5]
[1749707787101,7.81,159.63,159.51,18.933972]
[1749707787285,8.8358135,159.64,159.58,8.8358135]
[1749707787491,1.5614,159.67,159.59,8.8358135]
[1749707787492,8.8358135,159.65,159.59,8.8358135]
[1749707787809,34.8358135,159.64,159.59,8.8358135]
[1749707788108,8.8358135,159.63,159.58,25.64]
[1749707788299,8.8358135,159.62,159.58,25.64]
[1749707788893,8.8358135,159.6,159.58,25.64]
[1749707789095,8.8358135,159.59,159.58,25.64]
[1749707789294,13.81390326,159.59,159.58,25.64]
[1749707789887,16.16219935,159.59,159.58,25.64]
[1749707790095,16.16224176,159.59,159.58,25.64]
[1749707790303,13.81390326,159.59,159.58,25.64]
[1749707792415,26.0,159.61,159.58,25.64]
[1749707792617,13.81390326,159.62,159.58,39.45390326]
[1749707792797,26.0,159.63,159.58,39.45390326]
[1749707792798,13.81390326,159.61,159.58,25.64]
[1749707793420,13.81390326,159.6,159.58,25.64]
[1749707794199,26.0,159.62,159.58,25.64]
[1749707794400,13.81390326,159.6,159.59,4.65403928]
[1749707794618,13.81390326,159.6,159.58,25.64]
[1749707795207,13.81390326,159.61,159.58,25.64]
[1749707795398,0.28432314,159.65,159.58,25.64]
[1749707795399,26.0,159.63,159.58,25.64]
[1749707795716,13.81390326,159.61,159.58,25.64]
[1749707796213,26.0,159.63,159.58,25.64]
[1749707796415,1.5614,159.67,159.59,23.23029154]
[1749707796602,1.5614,159.67,159.61,18.64964886]
[1749707796926,13.81390326,159.63,159.62,10.00075267]
[1749707797228,13.81390326,159.63,159.53,26.0]
[1749707797399,13.81390326,159.6,159.55,13.81390326]
[1749707797597,26.0,159.65,159.56,23.23289988]
[1749707797806,13.81390326,159.6,159.57,4.58336108]
[1749707798120,13.81390326,159.61,159.56,58.44355212]
[1749707798304,13.81390326,159.61,159.57,4.58119762]
[1749707798509,13.81390326,159.61,159.58,4.581166]
[1749707798703,13.81390326,159.61,159.56,58.44355212]
[1749707798908,13.81390326,159.61,159.57,4.58076494]
[1749707799110,13.81390326,159.61,159.58,4.58076494]
[1749707799411,13.81390326,159.61,159.56,58.44355212]
[1749707799412,13.81390326,159.61,159.59,30.56075888]
[1749707799601,13.81390326,159.61,159.59,25.98]
[1749707802102,26.0,159.65,159.59,25.98]
[1749707802301,13.81390326,159.61,159.59,25.98]
[1749707803731,13.81390326,159.61,159.57,13.81390326]
[1749707803932,13.81390326,159.61,159.59,25.94]
[1749707807221,13.81390326,159.6,159.59,25.94]
[1749707808237,13.81390326,159.6,159.57,25.92]
[1749707808549,13.81390326,159.58,159.54,5.42]
[1749707808733,13.81390326,159.57,159.54,5.42]
[1749707808911,13.81390326,159.58,159.55,30.48390272]
[1749707809111,13.81390326,159.58,159.55,25.9]
[1749707809313,13.81390326,159.58,159.56,25.92]
[1749707809744,13.81390326,159.58,159.56,25.9]
[1749707812548,13.81390326,159.57,159.54,5.42]
[1749707812722,13.81390326,159.57,159.55,30.4643173]
[1749707812925,13.81390326,159.57,159.55,25.88]
[1749707813453,13.81390326,159.57,159.55,25.9]
[1749707814722,26.0,159.59,159.55,25.9]
[1749707814923,13.81390326,159.57,159.56,4.60140678]
[1749707815244,13.81390326,159.57,159.55,25.9]
[1749707815452,13.81390326,159.57,159.56,4.60139434]
[1749707815843,13.81390326,159.57,159.56,4.60143075]
[1749707816545,13.81390326,159.57,159.55,25.9]
[1749707816924,13.81390326,159.57,159.56,4.6014338]
[1749707817117,13.81390326,159.57,159.56,4.60143075]
[1749707817315,26.0,159.59,159.56,4.60143075]
[1749707817550,13.81390326,159.57,159.55,25.9]
[1749707817718,13.81390326,159.57,159.56,4.6008735]
[1749707817920,13.81390326,159.57,159.56,4.60091204]
[1749707818132,13.81390326,159.57,159.55,25.9]
[1749707818415,13.81390326,159.57,159.56,4.60093444]
[1749707818633,13.81390326,159.57,159.56,4.60097437]
[1749707818949,13.81390326,159.57,159.56,4.60093187]
[1749707819130,13.81390326,159.57,159.56,4.6008984]
[1749707819844,13.81390326,159.57,159.56,30.4608984]
[1749707820235,13.81390326,159.57,159.56,30.46099668]
[1749707820649,13.81390326,159.57,159.56,30.46181365]
[1749707820952,13.81390326,159.57,159.56,25.86]
[1749707821122,13.81390326,159.57,159.56,30.46174884]
[1749707821325,13.81390326,159.57,159.56,25.86]
[1749707821955,13.81390326,159.57,159.56,30.46192968]
[1749707822160,13.81390326,159.57,159.56,25.86]
[1749707822526,13.81390326,159.57,159.56,30.50275733]
[1749707822831,13.81390326,159.57,159.56,30.50273553]
[1749707823040,13.81390326,159.57,159.56,30.48273553]
[1749707823239,13.81390326,159.57,159.56,30.4828276]
[1749707823538,13.81390326,159.57,159.56,30.48283392]
[1749707823740,13.81390326,159.57,159.56,30.48311739]
[1749707824329,13.81390326,159.57,159.56,30.48308824]
[1749707824853,13.81390326,159.57,159.56,30.48312321]
[1749707825227,13.81390326,159.57,159.56,30.48309521]
[1749707825647,13.81390326,159.57,159.56,4.64309521]
[1749707825848,13.81390326,159.57,159.56,4.64308837]
[1749707826029,13.81390326,159.57,159.56,4.64312245]
[1749707826647,13.81390326,159.57,159.55,25.84]
[1749707826852,13.81390326,159.56,159.55,25.84]
[1749707827365,13.81390326,159.56,159.55,30.48312952]
[1749707827660,13.81390326,159.56,159.55,30.48316932]
[1749707827842,13.81390326,159.56,159.55,9.28633864]
[1749707828035,13.81390326,159.56,159.55,35.10633864]
[1749707828233,13.81390326,159.56,159.55,30.46316932]
[1749707828428,13.81390326,159.56,159.55,35.10658896]
[1749707828628,13.81390326,159.56,159.55,30.46316932]
[1749707828830,13.81390326,159.56,159.55,35.10607473]
[1749707829047,13.81390326,159.56,159.55,35.10605132]
[1749707829563,13.81390326,159.56,159.55,35.10613586]
[1749707829731,13.81390326,159.56,159.55,35.10611104]
[1749707829930,13.81390326,159.56,159.55,30.46316932]
[1749707830131,13.81390326,159.56,159.55,35.08610397]
[1749707830453,13.81390326,159.56,159.55,35.08609133]
[1749707830640,13.81390326,159.56,159.55,35.0861041]
[1749707831129,13.81390326,159.56,159.55,30.44316932]
[1749707831550,13.81390326,159.56,159.55,35.08604476]
[1749707831948,26.0,159.57,159.55,35.08611861]
[1749707832157,13.81390326,159.56,159.55,4.64316932]
[1749707832670,13.81390326,159.56,159.55,9.28739437]
[1749707832833,13.81390326,159.56,159.55,9.2874091]
[1749707833163,13.81390326,159.56,159.55,4.64316932]
[1749707833374,13.81390326,159.56,159.55,9.28762641]
[1749707834063,13.81390326,159.56,159.55,9.2880651]
[1749707834559,13.81390326,159.56,159.55,9.28836362]
[1749707834765,26.0,159.58,159.55,4.64316932]
[1749707835054,13.81390326,159.56,159.55,4.64316932]
[1749707835230,13.81390326,159.56,159.55,9.28929955]
[1749707835430,13.81390326,159.56,159.55,9.28929363]
[1749707835649,13.81390326,159.56,159.55,9.2892853]
[1749707836257,13.81390326,159.56,159.55,9.28976406]
[1749707836435,13.81390326,159.56,159.55,4.64316932]
[1749707836634,13.81390326,159.56,159.55,9.29032061]
[1749707836936,13.81390326,159.56,159.55,9.2903893]
[1749707837149,13.81390326,159.56,159.55,9.29039562]
[1749707837357,8.84519399,159.56,159.55,9.29034721]
[1749707837555,8.84519399,159.56,159.55,4.64316932]
[1749707838235,8.84519399,159.56,159.55,9.2921111]
[1749707838437,8.84519399,159.56,159.55,9.29268899]
[1749707839049,8.84519399,159.56,159.55,9.29349669]
[1749707839245,8.84519399,159.56,159.55,4.64316932]
[1749707839447,8.84519399,159.56,159.55,9.29355839]
[1749707839763,0.28432314,159.55,159.54,5.42]
[1749707839952,11.47608414,159.55,159.54,5.42]
[1749707840135,11.47608407,159.55,159.54,5.42]
[1749707840337,11.47608478,159.55,159.54,5.42]
[1749707840536,16.15616297,159.55,159.54,5.42]
[1749707840754,16.15617509,159.55,159.54,5.42]
[1749707840950,11.47614108,159.55,159.54,5.42]
[1749707841467,47.47560947,159.55,159.54,5.42]
[1749707841640,49.80901953,159.55,159.54,5.42]
[1749707842048,52.15564557,159.55,159.54,5.42]
[1749707842354,52.15575891,159.55,159.54,5.42]
[1749707842542,52.1559753,159.55,159.54,5.42]
[1749707843140,26.0,159.51,159.49,5.6]
[1749707843356,13.83056022,159.5,159.48,5.6]
[1749707843673,39.83056022,159.49,159.48,5.6]
[1749707850242,172.76408976,159.54,159.48,5.6]
[1749707850243,26.0,159.51,159.48,5.6]
[1749707850442,13.83056022,159.5,159.48,5.6]
[1749707856266,13.83056022,159.49,159.48,5.6]
[1749707857743,26.0,159.51,159.48,5.6]
[1749707858049,13.83056022,159.49,159.48,5.6]
[1749707860558,26.0,159.51,159.48,5.6]
[1749707860758,13.83056022,159.49,159.48,5.6]
[1749707861169,162.83026758,159.6,159.49,18.64964886]
[1749707861483,13.83056022,159.52,159.46,8.0986]
[1749707861656,26.0,159.54,159.5,5.6]
[1749707861973,26.0,159.54,159.51,25.76]
[1749707862281,0.28432314,159.54,159.5,5.6]
[1749707862749,13.83056022,159.51,159.5,5.6]
[1749707863370,13.83056022,159.51,159.44,13.83056022]
[1749707863558,13.83056022,159.47,159.45,5.6]
[1749707863762,13.83056022,159.46,159.45,5.6]
[1749707863954,13.83056022,159.46,159.45,31.36]
[1749707865471,13.83056022,159.46,159.45,5.6]
[1749707865697,13.83056022,159.46,159.45,31.36]
[1749707866376,13.83056022,159.46,159.45,5.6]
[1749707866565,13.83056022,159.46,159.45,31.36]
[1749707867376,13.83056022,159.46,159.45,5.6]
[1749707868859,26.0,159.46,159.45,5.6]
[1749707869061,39.83056022,159.46,159.45,5.6]
[1749707873365,40.11488336,159.46,159.45,5.6]
[1749707875873,41.75148336,159.46,159.45,5.6]
[1749707877188,46.7684155,159.46,159.45,5.6]
[1749707877374,83.91659165,159.46,159.45,5.6]
[1749707878770,83.91604587,159.46,159.45,5.6]
[1749707879994,70.08548565,159.46,159.45,5.6]
[1749707880683,65.06855351,159.46,159.45,5.6]
[1749707881981,78.89911373,159.46,159.45,5.6]
[1749707882296,65.06855351,159.46,159.45,5.6]
[1749707882800,65.07076055,159.46,159.45,5.6]
[1749707883095,46.42111169,159.46,159.45,5.6]
[1749707885396,41.45025061,159.46,159.45,5.6]
[1749707894309,39.81365061,159.46,159.45,5.6]
[1749707894999,150.721,159.5,159.45,5.6]
[1749707895308,8.85969914,159.47,159.45,5.6]
[1749707895488,26.0,159.47,159.45,5.6]
[1749707895684,34.85969914,159.47,159.45,5.6]
[1749707897110,26.0,159.47,159.45,5.6]
[1749707897286,8.85969914,159.48,159.45,5.6]
[1749707897627,26.0,159.47,159.45,5.6]
[1749707898810,149.1,159.5,159.45,16.04569914]
[1749707899025,8.85969914,159.49,159.45,16.04569914]
[1749707899317,149.1,159.5,159.45,21.01638194]
[1749707899487,162.93038194,159.5,159.45,21.01638194]
[1749707900314,162.93038194,159.5,159.46,25.64]
[1749707900911,13.83038194,159.5,159.46,25.64]
[1749707903831,13.83038194,159.5,159.46,39.47038194]
[1749707904727,13.83038194,159.48,159.46,25.64]
[1749707911314,13.83038194,159.49,159.46,25.64]
[1749707913431,13.83038194,159.49,159.45,19.43038194]
[1749707913619,13.83038194,159.49,159.46,25.58]
[1749707918555,13.83038194,159.48,159.46,25.58]
[1749707919347,8.85312992,159.48,159.46,25.58]
[1749707921053,8.85312992,159.48,159.45,5.6]
[1749707921054,8.85312992,159.47,159.45,5.6]
[1749707921214,8.85312992,159.46,159.45,5.6]
[1749707928350,9.13745306,159.46,159.45,5.6]
[1749707935264,14.1543852,159.46,159.45,5.6]
[1749707935770,26.0,159.43,159.4,5.46]
[1749707935956,8.85312992,159.41,159.4,5.46]
[1749707937758,26.0,159.43,159.4,5.46]
[1749707937759,8.85312992,159.42,159.4,5.46]
[1749707939461,34.85312992,159.43,159.4,5.46]
[1749707940367,26.0,159.43,159.4,5.46]
[1749707940572,34.85312992,159.44,159.4,5.46]
[1749707941369,8.85312992,159.43,159.4,5.46]
[1749707942961,8.85312992,159.43,159.41,25.54]
[1749707943156,8.85312992,159.43,159.4,5.46]
[1749707943383,8.85312992,159.43,159.41,25.54]
[1749707949278,8.85312992,159.42,159.41,25.54]
[1749707950882,34.85312992,159.43,159.41,25.54]
[1749707953889,8.85312992,159.45,159.41,34.39312992]
[1749707954186,26.0,159.45,159.42,8.85312992]
[1749707955672,26.0,159.45,159.41,34.39312992]
[1749707955974,34.85312992,159.45,159.41,34.39312992]
[1749707956587,34.85312992,159.45,159.41,25.54]
[1749707961594,34.85312992,159.45,159.41,34.39312992]
[1749707962705,34.85312992,159.45,159.41,25.54]
[1749707962876,34.85312992,159.45,159.41,34.39312992]
[1749707966187,149.1,159.48,159.41,25.54]
[1749707966383,4.69231443,159.47,159.43,8.85312992]
[1749707966585,4.69231443,159.46,159.43,8.85312992]
[1749707966794,4.69231443,159.45,159.44,25.54]
[1749707969177,8.85312992,159.47,159.44,31.0]
[1749707969381,4.69342495,159.46,159.44,31.0]
[1749707969599,8.85312992,159.47,159.44,31.0]
[1749707969799,4.6935831,159.46,159.44,31.0]
[1749707970013,4.6935831,159.45,159.44,31.0]
[1749707971708,8.85312992,159.47,159.44,31.0]
[1749707972011,4.69390721,159.46,159.44,31.0]
[1749707972189,8.85312992,159.47,159.44,31.0]
[1749707972389,13.54734756,159.46,159.44,31.0]
[1749707972689,4.69421764,159.45,159.44,31.0]
[1749707977303,13.54734756,159.45,159.44,31.0]
[1749707977595,13.54655919,159.45,159.44,31.0]
[1749707977914,8.85312992,159.45,159.44,31.0]
[1749707978509,8.85312992,159.45,159.44,5.46]
[1749707978708,39.54644626,159.45,159.44,5.46]
[1749707988325,26.0,159.43,159.42,25.54]
[1749707997831,26.0,159.43,159.42,31.0]
[1749708000642,10.47802992,159.46,159.42,31.0]
[1749708000812,13.54890053,159.45,159.42,31.0]
[1749708001012,8.85312992,159.45,159.42,31.0]
[1749708001839,8.85312992,159.44,159.42,31.0]
[1749708002213,8.85312992,159.43,159.42,5.46]
[1749708002414,26.0,159.4,159.38,5.46]
[1749708002624,8.85312992,159.39,159.38,5.46]
[1749708002827,13.83476889,159.39,159.38,5.46]
[1749708003014,18.91210924,159.39,159.38,5.46]
[1749708003229,18.91210924,159.39,159.31,5.46]
[1749708003230,26.0,159.36,159.31,5.46]
[1749708003414,8.85312992,159.32,159.31,5.46]
[1749708003841,26.0,159.36,159.31,5.46]
[1749708004137,9.13745306,159.32,159.31,5.46]
[1749708004348,34.85312992,159.32,159.31,5.46]
[1749708005016,1.84992314,159.34,159.31,5.46]
[1749708005017,26.0,159.33,159.31,5.46]
[1749708005218,39.86065538,159.33,159.31,5.46]
[1749708005529,13.86065538,159.32,159.31,5.46]
[1749708006134,13.86065538,159.33,159.31,5.46]
[1749708006534,13.86065538,159.34,159.31,5.46]
[1749708006729,26.0,159.36,159.31,31.0]
[1749708006913,13.86065538,159.34,159.31,31.0]
[1749708008342,13.86065538,159.33,159.31,31.0]
[1749708009341,13.86065538,159.34,159.31,31.0]
[1749708010340,13.86065538,159.33,159.31,31.0]
[1749708010544,13.86065538,159.32,159.31,31.0]
[1749708010848,13.86065538,159.32,159.31,5.46]
[1749708012044,26.0,159.33,159.31,5.46]
[1749708012045,13.86065538,159.33,159.31,5.46]
[1749708012920,13.86065538,159.32,159.31,5.46]
[1749708013139,26.0,159.3,159.29,5.46]
[1749708013321,39.86065538,159.3,159.29,5.46]
[1749708015832,39.86065538,159.3,159.27,5.46]
[1749708016050,13.86065538,159.29,159.27,5.46]
[1749708017855,13.86065538,159.28,159.27,5.46]
[1749708023353,0.28432314,159.29,159.27,5.46]
[1749708023561,13.86065538,159.28,159.27,5.46]
[1749708025827,0.28432314,159.29,159.27,5.46]
[1749708026049,13.86065538,159.28,159.27,5.46]
[1749708028825,51.67788446,159.28,159.27,5.46]
[1749708029030,26.0,159.24,159.2,5.46]
[1749708029236,13.86065538,159.22,159.2,5.46]
[1749708029544,26.0,159.24,159.2,5.46]
[1749708029745,13.86065538,159.23,159.2,5.46]
[1749708030979,13.86065538,159.22,159.2,5.46]
[1749708032339,26.0,159.21,159.2,5.46]
[1749708033041,13.86065538,159.22,159.2,5.46]
[1749708034159,26.0,159.21,159.2,5.46]
[1749708036363,13.86065538,159.22,159.2,5.46]
[1749708039157,6.58032314,159.27,159.2,5.46]
[1749708039158,26.0,159.21,159.2,5.46]
[1749708039358,0.28432314,159.27,159.2,19.32065538]
[1749708039537,18.933972,159.3,159.21,13.86065538]
[1749708039736,13.86065538,159.25,159.21,13.86065538]
[1749708042553,13.86065538,159.26,159.21,13.86065538]
[1749708042740,13.86065538,159.26,159.22,13.86065538]
[1749708042944,13.86065538,159.26,159.23,25.56]
[1749708044053,13.86065538,159.25,159.23,25.56]
[1749708044251,39.86065538,159.24,159.2,5.46]
[1749708044456,13.86065538,159.21,159.2,5.46]
[1749708047052,8.20702314,159.25,159.2,5.46]
[1749708047259,8.2693,159.29,159.21,39.42065538]
[1749708047437,26.0,159.23,159.21,39.42065538]
[1749708047636,26.0,159.23,159.21,25.56]
[1749708047877,26.0,159.23,159.21,39.42065538]
[1749708048176,8.2693,159.29,159.22,13.86065538]
[1749708048345,13.86065538,159.26,159.22,13.86065538]
[1749708048864,13.86065538,159.25,159.21,39.42065538]
[1749708050961,26.0,159.26,159.21,39.42065538]
[1749708051164,13.86065538,159.25,159.21,39.42065538]
[1749708051565,13.86065538,159.24,159.21,25.56]
[1749708051945,13.86065538,159.26,159.22,13.86065538]
[1749708052144,39.86065538,159.26,159.22,13.86065538]
[1749708053266,39.86065538,159.26,159.2,5.46]
[1749708053447,13.86065538,159.24,159.21,25.56]
[1749708053646,13.86065538,159.25,159.21,25.56]
[1749708054638,13.86065538,159.25,159.21,39.42065538]
[1749708055378,13.86065538,159.24,159.21,25.56]
[1749708056065,13.86065538,159.24,159.22,31.02]
[1749708057767,18.54118445,159.25,159.22,31.02]
[1749708058268,13.86065538,159.25,159.22,31.02]
[1749708059765,26.0,159.26,159.22,31.02]
[1749708059974,39.86065538,159.26,159.22,44.88065538]
[1749708060361,39.86065538,159.26,159.22,31.02]
[1749708060672,13.86065538,159.23,159.22,5.46]
[1749708060854,40.14497852,159.23,159.22,5.46]
[1749708061058,32.79462738,159.23,159.22,5.46]
[1749708061258,18.5475421,159.23,159.22,5.46]
[1749708062255,18.54970385,159.23,159.22,5.46]
[1749708063876,18.83402699,159.23,159.22,5.46]
[1749708066877,13.86065538,159.23,159.22,5.46]
[1749708067761,1.6633,159.28,159.22,5.46]
[1749708067972,13.86065538,159.25,159.22,31.02]
[1749708068187,13.86065538,159.24,159.22,31.02]
[1749708068361,13.86065538,159.25,159.22,31.02]
[1749708068864,13.86065538,159.24,159.22,31.02]
[1749708071584,13.86065538,159.25,159.22,31.02]
[1749708072454,13.86065538,159.24,159.22,31.02]
[1749708078283,26.0,159.25,159.22,31.02]
[1749708078500,13.86065538,159.24,159.22,31.02]
[1749708078781,13.86065538,159.23,159.22,5.46]
[1749708082299,14.14497852,159.23,159.22,5.46]
[1749708083278,18.64964886,159.27,159.22,5.46]
[1749708083600,39.86065538,159.23,159.22,5.46]
[1749708084491,26.0,159.23,159.22,5.46]
[1749708085287,39.86065538,159.23,159.22,5.46]
[1749708086275,14.14497852,159.23,159.22,5.46]
[1749708086475,26.28432314,159.23,159.22,5.46]
[1749708086684,40.14497852,159.23,159.22,5.46]
[1749708087794,1.6633,159.28,159.22,5.46]
[1749708087990,13.86065538,159.24,159.22,5.46]
[1749708088186,13.86065538,159.23,159.22,5.46]
[1749708088698,14.14497852,159.23,159.22,5.46]
[1749708089893,0.28432314,159.23,159.22,5.46]
[1749708090097,14.14497852,159.23,159.22,5.46]
[1749708093092,39.86065538,159.24,159.22,5.46]
[1749708093482,13.86065538,159.23,159.22,5.46]
[1749708097504,14.14497852,159.23,159.22,5.46]
[1749708097709,26.28432314,159.23,159.22,5.46]
[1749708097889,40.14497852,159.23,159.22,5.46]
[1749708100213,26.28432314,159.23,159.22,5.46]
[1749708100387,40.14497852,159.23,159.22,5.46]
[1749708101403,26.0,159.23,159.22,5.46]
[1749708101611,13.86065538,159.26,159.22,19.32065538]
[1749708101908,26.0,159.26,159.22,19.32065538]
[1749708102116,39.86065538,159.26,159.22,19.32065538]
[1749708102793,39.86065538,159.26,159.22,5.46]
[1749708102992,39.86065538,159.26,159.22,19.32065538]
[1749708103195,26.0,159.26,159.22,19.32065538]
[1749708103399,13.86065538,159.28,159.23,13.86065538]
[1749708103599,13.86065538,159.28,159.24,25.56]
[1749708103800,13.86065538,159.27,159.24,25.56]
[1749708104115,26.0,159.25,159.24,25.56]
[1749708104607,39.86065538,159.26,159.24,25.56]
[1749708105306,26.0,159.26,159.24,25.56]
[1749708106025,39.86065538,159.26,159.24,25.56]
[1749708110411,26.0,159.26,159.24,39.42065538]
[1749708111404,26.0,159.26,159.24,25.56]
[1749708112089,39.86065538,159.26,159.24,25.56]
[1749708112295,26.0,159.26,159.24,25.56]
[1749708113416,39.86065538,159.26,159.24,25.56]
[1749708115309,26.0,159.26,159.24,25.56]
[1749708116212,39.86065538,159.26,159.24,25.56]
[1749708116733,26.0,159.26,159.24,25.56]
[1749708117021,39.86065538,159.26,159.24,25.56]
[1749708117593,26.0,159.26,159.24,25.56]
[1749708120627,13.86065538,159.29,159.24,39.42065538]
[1749708120823,39.86065538,159.29,159.24,39.42065538]
[1749708121129,26.0,159.28,159.26,13.86065538]
[1749708121319,26.0,159.28,159.27,25.54]
[1749708122408,13.86065538,159.3,159.27,25.54]
[1749708122607,0.28432314,159.33,159.27,25.54]
[1749708122608,13.86065538,159.31,159.27,25.54]
[1749708123224,13.86065538,159.3,159.27,25.54]
[1749708124113,39.86065538,159.31,159.27,25.54]
[1749708124525,13.86065538,159.3,159.27,25.54]
[1749708125327,13.86065538,159.28,159.27,25.54]
[1749708126436,13.86065538,159.28,159.27,30.98]
[1749708127010,13.86065538,159.28,159.27,5.44]
[1749708127222,13.86065538,159.28,159.27,30.98]
[1749708127734,26.0,159.3,159.27,30.98]
[1749708127936,5.30542722,159.33,159.27,30.98]
[1749708127937,13.86065538,159.29,159.27,30.98]
[1749708128741,13.86065538,159.3,159.27,30.98]
[1749708129038,39.86065538,159.31,159.27,30.98]
[1749708129242,39.86065538,159.31,159.27,44.84065538]
[1749708134737,39.86065538,159.31,159.27,30.98]
[1749708134954,26.0,159.29,159.28,13.86065538]
[1749708135233,13.86065538,159.33,159.28,39.40065538]
[1749708135436,39.86065538,159.33,159.28,39.40065538]
[1749708135642,1.6528,159.36,159.3,13.86065538]
[1749708135945,39.86065538,159.35,159.31,25.54]
[1749708138141,26.0,159.35,159.31,39.40065538]
[1749708138643,13.86065538,159.34,159.31,25.54]
[1749708139145,39.86065538,159.35,159.31,39.40065538]
[1749708139329,26.0,159.35,159.32,13.86065538]
[1749708139640,26.0,159.35,159.33,25.54]
[1749708145519,39.86065538,159.35,159.33,25.54]
[1749708146248,26.0,159.35,159.33,25.54]
[1749708146450,39.86065538,159.35,159.33,25.54]
[1749708146754,13.86065538,159.34,159.33,25.54]
[1749708147251,13.86065538,159.34,159.28,13.86065538]
[1749708147427,13.86065538,159.33,159.29,25.54]
[1749708147741,13.86065538,159.33,159.29,39.40065538]
[1749708148150,13.86065538,159.33,159.29,13.86065538]
[1749708148351,13.86065538,159.33,159.3,25.54]
[1749708150745,13.86065538,159.34,159.3,39.40065538]
[1749708151347,26.0,159.35,159.32,13.86065538]
[1749708151654,26.0,159.35,159.33,39.40065538]
[1749708152240,26.0,159.35,159.33,25.54]
[1749708152729,26.0,159.35,159.33,39.40065538]
[1749708153126,26.0,159.35,159.33,25.54]
[1749708154864,13.86065538,159.34,159.28,13.86065538]
[1749708155074,13.86065538,159.32,159.29,25.52]
[1749708155361,13.86065538,159.32,159.3,25.52]
[1749708155572,13.86065538,159.31,159.27,19.30065538]
[1749708155741,13.86065538,159.31,159.28,25.52]
[1749708156343,13.86065538,159.31,159.29,25.52]
[1749708156937,26.0,159.35,159.27,5.44]
[1749708156938,13.86065538,159.3,159.27,5.44]
[1749708157144,13.86065538,159.3,159.28,25.52]
[1749708157567,26.0,159.32,159.28,25.52]
[1749708157738,13.86065538,159.31,159.27,5.44]